fUST/lending_fUST_20240612
["ID","MTS","AMOUNT","RATE_DAILY","PERIOD"]
[329203719,1718178732211,273.37336231,9.9e-05,2]
[329203720,1718178741870,273.37336231,9.9e-05,2]
[329203721,1718178744629,354.46515366,0.00016435,120]
[329203722,1718178750173,273.37336231,9.9e-05,2]
[329203723,1718178758370,273.37336231,9.9e-05,2]
[329203724,1718178764482,354.46515366,0.00016435,120]
[329203725,1718178764622,19315.92802164,9.9e-05,2]
[329203726,1718178767227,273.37336231,9.9e-05,2]
[329203727,1718178775571,273.37336231,9.9e-05,2]
[329203728,1718178783921,273.37336231,9.9e-05,2]
[329203729,1718178784643,5462.81189521,9.9e-05,2]
[329203730,1718178786503,354.46515366,0.00016435,120]
[329203731,1718178792157,273.37336231,9.9e-05,2]
[329203732,1718178801535,273.37336231,9.9e-05,2]
[329203733,1718178808509,354.46515366,0.00016435,120]
[329203734,1718178810002,273.37336231,9.9e-05,2]
[329203735,1718178817761,273.37336231,9.9e-05,2]
[329203736,1718178826499,354.46515366,0.00016435,120]
[329203737,1718178826552,273.37336231,9.9e-05,2]
[329203738,1718178834598,273.37336231,9.9e-05,2]
[329203739,1718178842513,273.37336231,9.9e-05,2]
[329203740,1718178843070,-519.54240298,0.00028508,120]
[329203741,1718178843097,-1000.0,0.00028508,120]
[329203742,1718178843125,-1000.0,0.00028508,120]
[329203743,1718178843155,-1945.61411352,0.00028508,120]
[329203744,1718178843185,-653.0,0.00028508,120]
[329203745,1718178843211,-848.17644105,0.00028508,120]
[329203746,1718178843240,-911.33015179,0.00028508,120]
[329203747,1718178843269,-887.59874025,0.00028508,120]
[329203748,1718178843301,-859.58684027,0.00028508,120]
[329203749,1718178843330,-221.11940857,0.00028508,120]
[329203750,1718178843359,-1017.13334177,0.00028508,120]
[329203751,1718178843417,-2699.26169116,0.00028508,90]
[329203752,1718178843459,-998.68193409,0.00028508,120]
[329203753,1718178843493,-191.3009181,0.00028508,120]
[329203754,1718178843553,-2761.84468411,0.00028508,120]
[329203755,1718178843584,-9012.87108536,0.00028508,120]
[329203756,1718178843624,-13894.08869105,0.00028508,120]
[329203757,1718178843672,-1960578.84955593,0.00028508,120]
[329203758,1718178848512,354.46515366,0.00016435,120]
[329203759,1718178850595,232.79277782,9.9e-05,2]
[329203760,1718178857596,-3831823.60697184,0.00028508,120]
[329203761,1718178857627,-168176.39302816,0.00028508,120]
[329203762,1718178867802,-772780.00849477,0.00028508,120]
[329203763,1718178867840,-1227219.99150523,0.00028508,120]
[329203764,1718178868513,354.46515366,0.00016435,120]
[329203765,1718178886503,462.35342001,0.00016435,120]
[329203766,1718178902659,151.01661183,0.0001873,30]
[329203767,1718178902785,151.01661183,0.00018356,120]
[329203792,1718178965865,2037.59250395,9.999e-05,2]
[329203793,1718178979210,-175140.7854398,0.00028508,120]
[329203794,1718178979240,-1000.0,0.00028508,90]
[329203795,1718178979277,-1000.0,0.00028508,90]
[329203796,1718178979307,-4000000.0,0.00028508,120]
[329203797,1718178979336,-529.699999,0.00028508,90]
[329203798,1718178979364,-529.699999,0.00028508,120]
[329203799,1718178979393,-1100.63653808,0.00028508,120]
[329203800,1718178979422,-1089.64679879,0.00028508,120]
[329203801,1718178979481,-836.0,0.00028508,120]
[329203802,1718178979509,-11964.37885941,0.00028508,120]
[329203803,1718178981619,11101.9638547,9.999e-05,2]
[329203804,1718179052964,18125.27001617,0.00016984,15]
[329204386,1718179205170,262.16993722,9.999e-05,2]
[329204387,1718179282755,213.39464,0.00025753,120]
[329204389,1718179404961,1208.1449774,0.00021972,30]
[329204390,1718179406981,151.01812217,0.00017557,30]
[329204391,1718179407046,151.01812217,0.00017206,120]
[329204394,1718179530525,155.02015262,9.999e-05,2]
[329204401,1718179633715,262.16993722,9.999e-05,2]
[329204405,1718179645061,-1000.0,0.00028517,120]
[329204406,1718179645102,-1000.0,0.00028517,120]
[329204407,1718179645141,-529.699999,0.00028517,120]
[329204408,1718179645186,-12508.62519251,0.00028517,120]
[329204409,1718179692471,-12775.66456091,0.000255,60]
[329204410,1718179692518,-213.39464,0.00025753,45]
[329204411,1718179692560,-213.39464,0.00025753,51]
[329204412,1718179692589,-213.39464,0.00025753,57]
[329204413,1718179692634,-213.39464,0.00025753,64]
[329204414,1718179692669,-213.39464,0.00025753,70]
[329204415,1718179692703,-213.39464,0.00025753,76]
[329204416,1718179692759,-213.39464,0.00025753,82]
[329204417,1718179692796,-213.39464,0.00025753,88]
[329204418,1718179692826,-213.39464,0.00025753,95]
[329204419,1718179692856,-213.39464,0.00025753,101]
[329204420,1718179692886,-213.39464,0.00025753,107]
[329204421,1718179692918,-213.39464,0.00025753,113]
[329204422,1718179692959,-2416.28995479,0.00026614,120]
[329204423,1718179693007,-50058.0,0.00028,120]
[329204424,1718179693038,-113683.75418351,0.00028,120]
[329204425,1718179693076,-188.71750715,0.00028,120]
[329204426,1718179693126,-200.0,0.00028554,120]
[329204427,1718179693186,-16778.81581289,0.00029,120]
[329204428,1718179693242,-665.11698787,0.0003,120]
[329204429,1718179693280,-152.23,0.0003,120]
[329204430,1718179693345,-857.52,0.0003,120]
[329204431,1718179693381,-500.0,0.0003,120]
[329204432,1718179693417,-44433.66280547,0.0003,120]
[329204512,1718179834630,-4751.14527587,0.00010958,2]
[329204513,1718179834641,-768.33,0.00010959,2]
[329204514,1718179834651,-262.16993722,0.00013698,2]
[329204515,1718179834667,-311.502726,0.00013699,2]
[329204516,1718179834677,-1719.7263211,0.00014337,2]
[329204517,1718179834692,-300.0,0.00014497,2]
[329204518,1718179834713,-300.0,0.00014497,2]
[329204519,1718179834728,-272.44132449,0.00014498,2]
[329204520,1718179834742,-156.17906786,0.00014498,2]
[329204521,1718179834766,-199.48024338,0.00014498,2]
[329204523,1718179834785,-200.88962575,0.00014498,2]
[329204524,1718179834819,-338.22193733,0.00014498,2]
[329204527,1718179834839,-237.30946004,0.00014498,2]
[329204529,1718179834858,-310.02774165,0.00014498,2]
[329204530,1718179834873,-24900.0,0.000145,2]
[329204532,1718179834893,-1101.09253186,0.00015,2]
[329204533,1718179834913,-155.12071913,0.00015,2]
[329204534,1718179834927,-2416.5154688,0.00015,2]
[329204535,1718179834943,-599.50993839,0.00015,2]
[329204536,1718179834955,-153.0,0.00015441,2]
[329204537,1718179834977,-153.0,0.00015541,2]
[329204538,1718179834994,-153.0,0.00015541,2]
[329204539,1718179835025,-153.0,0.00015541,2]
[329204540,1718179835038,-153.0,0.00015541,2]
[329204541,1718179835055,-339.2339668,0.00015541,2]
[329204542,1718179835074,-153.0,0.00015541,2]
[329204543,1718179835086,-383.1445845,0.00015541,2]
[329204544,1718179835104,-153.0,0.00015541,2]
[329204545,1718179835118,-153.0,0.00015541,2]
[329204546,1718179835135,-153.0,0.00015678,2]
[329204547,1718179835147,-153.0,0.00015678,2]
[329204548,1718179835166,-153.0,0.00015678,2]
[329204549,1718179835182,-322.3709205,0.00015678,2]
[329204550,1718179835240,-153.0,0.00015678,2]
[329204551,1718179835261,-153.0,0.00015678,2]
[329204552,1718179835278,-153.0,0.00015678,2]
[329204553,1718179835291,-153.0,0.00015841,2]
[329204554,1718179835308,-153.0,0.00015841,2]
[329204555,1718179835333,-153.0,0.00015841,2]
[329204556,1718179835358,-153.0,0.00015841,2]
[329204557,1718179835374,-153.0,0.00015841,2]
[329204558,1718179835386,-5281.92082876,0.00015958,2]
[329204559,1718179835409,-153.0,0.00016252,2]
[329204560,1718179835420,-306.0,0.00016252,2]
[329204561,1718179835435,-153.0,0.00016252,2]
[329204562,1718179835452,-153.0,0.00016329,2]
[329204563,1718179835470,-153.0,0.00016329,2]
[329204564,1718179835490,-306.0,0.00016329,2]
[329204565,1718179835504,-153.0,0.00016329,2]
[329204566,1718179835517,-153.0,0.00016329,2]
[329204567,1718179835533,-156.8994364,0.00016329,2]
[329204568,1718179835562,-306.0,0.00016329,2]
[329204569,1718179835574,-306.0,0.00016329,2]
[329204570,1718179835591,-306.0,0.00016329,2]
[329204571,1718179835602,-153.0,0.00016329,2]
[329204572,1718179835625,-431.7544452,0.00016329,2]
[329204573,1718179835638,-193.43300617,0.00016338,2]
[329204574,1718179835655,-1305.5952976,0.00016338,2]
[329204575,1718179835670,-391.26528761,0.00016338,2]
[329204576,1718179835680,-153.0,0.000164,2]
[329204577,1718179835691,-153.0,0.000164,2]
[329204578,1718179835716,-973.13281876,0.00016432,2]
[329204579,1718179835735,-258.39178265,0.00016432,2]
[329204580,1718179835746,-195.00432037,0.00016432,2]
[329204581,1718179835774,-383.06737112,0.00016433,2]
[329204582,1718179835822,-5854.43878638,0.00016433,2]
[329204583,1718179835837,-2401.67742322,0.00016434,2]
[329204609,1718179844135,-74904.98968763,0.00016434,2]
[329204610,1718179844152,-686.41586833,0.00016435,2]
[329204612,1718179844181,-155.50367802,0.00016435,2]
[329204614,1718179844194,-155.60621199,0.00016435,2]
[329204615,1718179844207,-2664.04272981,0.00016435,2]
[329204617,1718179844225,-241.0467815,0.00016435,2]
[329204619,1718179844248,-285.69382129,0.00016435,2]
[329204620,1718179844262,-320.70650652,0.00016435,2]
[329204621,1718179844280,-155.19930024,0.00016436,2]
[329204622,1718179844304,-1441.79948543,0.00016436,2]
[329204623,1718179844316,-309.9690031,0.00016436,2]
[329204624,1718179844356,-172.8126878,0.00016437,2]
[329204625,1718179844374,-30708.2327957,0.00016437,2]
[329204626,1718179844389,-500.0,0.00016438,4]
[329204627,1718179844413,-500.0,0.00016438,2]
[329204628,1718179844431,-250.0,0.00016438,2]
[329204629,1718179844443,-500.0,0.00016438,2]
[329204630,1718179844463,-500.0,0.00016438,2]
[329204631,1718179844481,-500.0,0.00016438,2]
[329204632,1718179844496,-500.0,0.00016438,2]
[329204633,1718179844514,-500.0,0.00016438,2]
[329204634,1718179844536,-170.68782108,0.00016438,2]
[329204635,1718179844588,-500.0,0.00016438,2]
[329204636,1718179844602,-500.0,0.00016438,2]
[329204637,1718179844618,-500.0,0.00016438,2]
[329204638,1718179844646,-500.0,0.00016438,2]
[329204639,1718179844663,-500.0,0.00016438,2]
[329204640,1718179844673,-500.0,0.00016438,2]
[329204641,1718179844685,-500.0,0.00016438,2]
[329204642,1718179844705,-500.0,0.00016438,2]
[329204643,1718179844733,-500.0,0.00016438,2]
[329204644,1718179844745,-500.0,0.00016438,2]
[329204645,1718179844767,-509.93422011,0.00016438,2]
[329204646,1718179844805,-1127.23,0.00016438,2]
[329204647,1718179844818,-500.0,0.00016438,2]
[329204648,1718179844834,-500.0,0.00016438,2]
[329204649,1718179844845,-500.0,0.00016438,2]
[329204650,1718179844862,-619.76,0.00016438,2]
[329204651,1718179844875,-500.0,0.00016438,2]
[329204652,1718179844900,-500.0,0.00016438,2]
[329204653,1718179844920,-500.0,0.00016438,2]
[329204654,1718179844946,-500.0,0.00016438,2]
[329204655,1718179844978,-500.0,0.00016438,2]
[329204656,1718179845000,-500.0,0.00016438,2]
[329204657,1718179845045,-500.0,0.00016438,2]
[329204658,1718179845063,-14998.19,0.00016438,2]
[329204659,1718179845097,-1336.24,0.00016438,2]
[329204660,1718179845110,-500.0,0.00016438,2]
[329204661,1718179845121,-500.0,0.00016438,2]
[329204662,1718179845141,-500.0,0.00016438,2]
[329204663,1718179845177,-766.74,0.00016438,2]
[329204664,1718179845204,-500.0,0.00016438,2]
[329204665,1718179845233,-7788.73,0.00016438,2]
[329204666,1718179845281,-17698.7,0.00016438,2]
[329204667,1718179845301,-500.0,0.00016438,2]
[329204668,1718179845312,-500.0,0.00016438,2]
[329204669,1718179845327,-736.06,0.00016438,2]
[329204670,1718179845362,-2458.11,0.00016438,2]
[329204671,1718179845373,-500.0,0.00016438,2]
[329204672,1718179845395,-500.0,0.00016438,2]
[329204673,1718179845428,-500.0,0.00016438,2]
[329204674,1718179845442,-3173.18,0.00016438,2]
[329204675,1718179845459,-500.0,0.00016438,2]
[329204676,1718179845472,-500.0,0.00016438,2]
[329204677,1718179845488,-538.49,0.00016438,2]
[329204678,1718179845505,-500.0,0.00016438,2]
[329204679,1718179845521,-516.53957628,0.00016438,2]
[329204680,1718179845533,-500.0,0.00016438,2]
[329204681,1718179845545,-500.0,0.00016438,2]
[329204682,1718179845561,-500.0,0.00016438,2]
[329204683,1718179845577,-500.0,0.00016438,2]
[329204684,1718179845599,-936.16,0.00016438,2]
[329204685,1718179845612,-936.16,0.00016438,2]
[329204686,1718179845625,-936.16,0.00016438,2]
[329204687,1718179845642,-936.16,0.00016438,2]
[329204688,1718179845654,-936.16,0.00016438,2]
[329204689,1718179845674,-500.0,0.00016438,2]
[329204690,1718179845686,-500.0,0.00016438,2]
[329204691,1718179845698,-500.0,0.00016438,2]
[329204692,1718179845710,-500.0,0.00016438,2]
[329204693,1718179845732,-1433.92,0.00016438,2]
[329204694,1718179845748,-275.71709057,0.000165,2]
[329204695,1718179845763,-155.01860223,0.000165,2]
[329204696,1718179845783,-153.0,0.000165,2]
[329204697,1718179845834,-391.93504605,0.00016711,2]
[329204698,1718179845847,-1982.4555782,0.00016711,2]
[329204699,1718179845859,-936.16,0.00016711,2]
[329204700,1718179845873,-936.16,0.00016711,2]
[329204701,1718179845900,-500.0,0.00016712,4]
[329204702,1718179845945,-500.0,0.00016712,2]
[329204703,1718179845979,-250.0,0.00016712,2]
[329204704,1718179846009,-500.0,0.00016712,2]
[329204705,1718179846023,-500.0,0.00016712,2]
[329204706,1718179846038,-500.0,0.00016712,2]
[329204707,1718179846070,-500.0,0.00016712,2]
[329204708,1718179846083,-500.0,0.00016712,2]
[329204709,1718179846096,-500.0,0.00016712,2]
[329204711,1718179846118,-500.0,0.00016712,2]
[329204713,1718179846129,-500.0,0.00016712,2]
[329204715,1718179846146,-500.0,0.00016712,2]
[329204717,1718179846194,-500.0,0.00016712,2]
[329204719,1718179846214,-1127.23,0.00016712,2]
[329204721,1718179846231,-566.81306452,0.00016712,2]
[329204723,1718179846244,-500.0,0.00016712,2]
[329204724,1718179846263,-619.76,0.00016712,2]
[329204726,1718179846279,-500.0,0.00016712,2]
[329204729,1718179846294,-500.0,0.00016712,2]
[329204730,1718179846306,-500.0,0.00016712,2]
[329204732,1718179846318,-500.0,0.00016712,2]
[329204735,1718179846330,-14998.19,0.00016712,2]
[329204737,1718179846342,-1336.24,0.00016712,2]
[329204739,1718179846359,-262.28007136,0.00016712,2]
[329204741,1718179846381,-500.0,0.00016712,2]
[329204743,1718179846396,-500.0,0.00016712,2]
[329204756,1718179846584,-766.74,0.00016712,2]
[329204757,1718179846597,-500.0,0.00016712,2]
[329204760,1718179846613,-7788.73,0.00016712,2]
[329204761,1718179846626,-500.0,0.00016712,2]
[329204763,1718179846637,-17698.7,0.00016712,2]
[329204765,1718179846649,-500.0,0.00016712,2]
[329204767,1718179846660,-736.06,0.00016712,2]
[329204769,1718179846680,-2458.11,0.00016712,2]
[329204771,1718179846693,-500.0,0.00016712,2]
[329204773,1718179846704,-318.1967511,0.00016712,2]
[329204775,1718179846714,-500.0,0.00016712,2]
[329204778,1718179846741,-3173.18,0.00016712,2]
[329204780,1718179846754,-588.26120182,0.00016712,2]
[329204782,1718179846772,-500.0,0.00016712,2]
[329204783,1718179846814,-538.49,0.00016712,2]
[329204785,1718179846825,-500.0,0.00016712,2]
[329204787,1718179846836,-500.0,0.00016712,2]
[329204789,1718179846849,-500.0,0.00016712,2]
[329204792,1718179846880,-1433.92,0.00016712,2]
[329204793,1718179846891,-500.0,0.00016799,2]
[329204795,1718179846917,-154.3091244,0.000168,2]
[329204798,1718179846939,-1000.0,0.00016984,2]
[329204799,1718179846952,-500.0,0.00016985,2]
[329204801,1718179846964,-936.16,0.00016985,2]
[329204803,1718179846978,-936.16,0.00016985,2]
[329204805,1718179847000,-500.0,0.00016986,4]
[329204807,1718179847023,-500.0,0.00016986,2]
[329204808,1718179847034,-250.0,0.00016986,2]
[329204810,1718179847046,-500.0,0.00016986,2]
[329204812,1718179847068,-167.1,0.00016986,2]
[329204815,1718179847103,-500.0,0.00016986,2]
[329204818,1718179847138,-500.0,0.00016986,2]
[329204819,1718179847150,-294.89911392,0.00016986,2]
[329204821,1718179847161,-500.0,0.00016986,2]
[329204822,1718179847173,-500.0,0.00016986,2]
[329204823,1718179847187,-500.0,0.00016986,2]
[329204825,1718179847206,-500.0,0.00016986,2]
[329204827,1718179847230,-500.0,0.00016986,2]
[329204829,1718179847246,-1127.23,0.00016986,2]
[329204832,1718179847270,-619.76,0.00016986,2]
[329204834,1718179847283,-500.0,0.00016986,2]
[329204836,1718179847307,-500.0,0.00016986,2]
[329204838,1718179847328,-500.0,0.00016986,2]
[329204841,1718179847355,-500.0,0.00016986,2]
[329204846,1718179847382,-14998.19,0.00016986,2]
[329204850,1718179847414,-1336.24,0.00016986,2]
[329204852,1718179847429,-228.92,0.00016986,2]
[329204855,1718179847448,-234.66756291,0.00016986,2]
[329204857,1718179847460,-766.74,0.00016986,2]
[329204860,1718179847482,-500.0,0.00016986,2]
[329204863,1718179847492,-7788.73,0.00016986,2]
[329204866,1718179847505,-17698.7,0.00016986,2]
[329204868,1718179847530,-155.83676024,0.00016986,2]
[329204871,1718179847544,-736.06,0.00016986,2]
[329204875,1718179847566,-2458.11,0.00016986,2]
[329204878,1718179847577,-500.0,0.00016986,2]
[329204881,1718179847589,-500.0,0.00016986,2]
[329204885,1718179847604,-3173.18,0.00016986,2]
[329204888,1718179847630,-500.0,0.00016986,2]
[329204892,1718179847660,-538.49,0.00016986,2]
[329204895,1718179847677,-500.0,0.00016986,2]
[329204898,1718179847691,-500.0,0.00016986,2]
[329204902,1718179847702,-500.0,0.00016986,2]
[329204905,1718179847716,-1433.92,0.00016986,2]
[329204908,1718179847729,-1000.0,0.00017,2]
[329204910,1718179847740,-999.999999,0.00017,2]
[329204912,1718179847751,-221.9335218,0.00017151,2]
[329204913,1718179847762,-292.5693121,0.00017151,2]
[329204915,1718179847774,-292.5693121,0.00017151,2]
[329204916,1718179847791,-585.0942502,0.00017151,2]
[329204920,1718179847824,-582.5080585,0.00017151,2]
[329204923,1718179847848,-292.5693121,0.00017151,2]
[329204925,1718179847861,-292.5693121,0.00017151,2]
[329204928,1718179847874,-292.5693121,0.00017151,2]
[329204932,1718179847901,-292.5693121,0.00017151,2]
[329204934,1718179847921,-292.5693121,0.00017151,2]
[329204935,1718179847931,-292.5693121,0.00017151,2]
[329204937,1718179847943,-292.5693121,0.00017151,2]
[329204941,1718179847964,-292.5693121,0.00017151,2]
[329204944,1718179847977,-292.5693121,0.00017151,2]
[329204947,1718179848002,-292.5693121,0.00017151,2]
[329204949,1718179848015,-292.5693121,0.00017151,2]
[329204952,1718179848030,-500.0,0.00017259,2]
[329204954,1718179848043,-500.0,0.00017259,2]
[329204957,1718179848067,-936.16,0.00017259,2]
[329204959,1718179848077,-624.23075549,0.0001726,4]
[329204962,1718179848092,-500.0,0.0001726,2]
[329204965,1718179848105,-250.0,0.0001726,2]
[329204966,1718179848119,-500.0,0.0001726,2]
[329204968,1718179848143,-500.0,0.0001726,2]
[329204970,1718179848158,-500.0,0.0001726,2]
[329204972,1718179848170,-500.0,0.0001726,2]
[329204975,1718179848216,-500.0,0.0001726,2]
[329204977,1718179848240,-500.0,0.0001726,2]
[329204979,1718179848254,-1127.23,0.0001726,2]
[329204981,1718179848271,-619.76,0.0001726,2]
[329204984,1718179848294,-500.0,0.0001726,2]
[329204985,1718179848310,-500.0,0.0001726,2]
[329204988,1718179848326,-500.0,0.0001726,2]
[329204990,1718179848343,-500.0,0.0001726,2]
[329204992,1718179848355,-14998.19,0.0001726,2]
[329204994,1718179848365,-1336.24,0.0001726,2]
[329204996,1718179848386,-766.74,0.0001726,2]
[329204998,1718179848398,-500.0,0.0001726,2]
[329205000,1718179848424,-7788.73,0.0001726,2]
[329205002,1718179848443,-17698.7,0.0001726,2]
[329205004,1718179848456,-736.06,0.0001726,2]
[329205006,1718179848474,-2458.11,0.0001726,2]
[329205008,1718179848484,-500.0,0.0001726,2]
[329205010,1718179848494,-500.0,0.0001726,2]
[329205011,1718179848504,-3173.18,0.0001726,2]
[329205014,1718179848522,-500.0,0.0001726,2]
[329205016,1718179848542,-538.49,0.0001726,2]
[329205018,1718179848553,-500.0,0.0001726,2]
[329205020,1718179848563,-500.0,0.0001726,2]
[329205021,1718179848574,-1433.92,0.0001726,2]
[329205023,1718179848587,-500.0,0.00017399,2]
[329205024,1718179848598,-500.0,0.00017399,2]
[329205027,1718179848613,-936.16,0.00017399,2]
[329205029,1718179848636,-30000.0,0.000174,2]
[329205031,1718179848651,-500.0,0.00017533,2]
[329205033,1718179848671,-936.16,0.00017533,2]
[329205035,1718179848690,-500.0,0.00017534,2]
[329205037,1718179848713,-250.0,0.00017534,2]
[329205039,1718179848736,-500.0,0.00017534,2]
[329205041,1718179848753,-500.0,0.00017534,2]
[329205043,1718179848768,-500.0,0.00017534,2]
[329205045,1718179848792,-585.24627026,0.00017534,2]
[329205047,1718179848815,-500.0,0.00017534,2]
[329205049,1718179848829,-1127.23,0.00017534,2]
[329205051,1718179848850,-619.76,0.00017534,2]
[329205053,1718179848861,-500.0,0.00017534,2]
[329205055,1718179848874,-500.0,0.00017534,2]
[329205057,1718179848890,-500.0,0.00017534,2]
[329205059,1718179848909,-14998.19,0.00017534,2]
[329205061,1718179848927,-1336.24,0.00017534,2]
[329205062,1718179848937,-766.74,0.00017534,2]
[329205063,1718179848948,-500.0,0.00017534,2]
[329205065,1718179848960,-7788.73,0.00017534,2]
[329205067,1718179848980,-17698.7,0.00017534,2]
[329205069,1718179848998,-736.06,0.00017534,2]
[329205071,1718179849012,-2458.11,0.00017534,2]
[329205073,1718179849023,-500.0,0.00017534,2]
[329205075,1718179849040,-500.0,0.00017534,2]
[329205077,1718179849065,-3173.18,0.00017534,2]
[329205079,1718179849075,-500.0,0.00017534,2]
[329205081,1718179849085,-538.49,0.00017534,2]
[329205083,1718179849096,-500.0,0.00017534,2]
[329205085,1718179849107,-1433.92,0.00017534,2]
[329205087,1718179849117,-504.828,0.00017556,2]
[329205089,1718179849128,-162.54564181,0.00017719,3]
[329205091,1718179849138,-500.0,0.00017807,2]
[329205093,1718179849148,-574.13892282,0.00017807,2]
[329205095,1718179849159,-936.16,0.00017807,2]
[329205097,1718179849170,-936.16,0.00017807,2]
[329205099,1718179849183,-500.0,0.00017808,2]
[329205101,1718179849195,-250.0,0.00017808,2]
[329205103,1718179849207,-500.0,0.00017808,2]
[329205105,1718179849220,-500.0,0.00017808,2]
[329205107,1718179849231,-500.0,0.00017808,2]
[329205109,1718179849241,-500.0,0.00017808,2]
[329205111,1718179849252,-1127.23,0.00017808,2]
[329205113,1718179849265,-619.76,0.00017808,2]
[329205115,1718179849276,-500.0,0.00017808,2]
[329205117,1718179849287,-500.0,0.00017808,2]
[329205119,1718179849297,-500.0,0.00017808,2]
[329205121,1718179849310,-14998.19,0.00017808,2]
[329205124,1718179849322,-1336.24,0.00017808,2]
[329205126,1718179849333,-766.74,0.00017808,2]
[329205128,1718179849344,-500.0,0.00017808,2]
[329205130,1718179849358,-7788.73,0.00017808,2]
[329205132,1718179849374,-17698.7,0.00017808,2]
[329205134,1718179849384,-736.06,0.00017808,2]
[329205136,1718179849395,-2458.11,0.00017808,2]
[329205138,1718179849406,-500.0,0.00017808,2]
[329205140,1718179849416,-150.4455963,0.00017808,2]
[329205142,1718179849427,-3173.18,0.00017808,2]
[329205144,1718179849438,-500.0,0.00017808,2]
[329205146,1718179849449,-538.49,0.00017808,2]
[329205148,1718179849461,-1433.92,0.00017808,2]
[329205150,1718179849474,-3315.48223171,0.00017898,2]
[329205153,1718179849485,-151.01812217,0.00017915,7]
[329205154,1718179849495,-292.5693121,0.00017973,2]
[329205156,1718179849504,-292.5693121,0.00017973,2]
[329205159,1718179849519,-287.200125,0.00017973,2]
[329205161,1718179849530,-500.0,0.00017995,2]
[329205163,1718179849542,-625.19513025,0.00017996,2]
[329205165,1718179849553,-876.82850055,0.00018,2]
[329205167,1718179849563,-2765.44251206,0.00018,2]
[329205169,1718179849574,-1000.0,0.00018,2]
[329205171,1718179849587,-1355.61945113,0.00018,2]
[329205173,1718179849598,-155.02015262,0.00018,2]
[329205175,1718179849609,-632.99963654,0.00018,2]
[329205177,1718179849619,-1000.0,0.00018,2]
[329205179,1718179849630,-155.02790502,0.00018,2]
[329205181,1718179849641,-529.1,0.00018081,2]
[329205183,1718179849655,-936.16,0.00018081,2]
[329205185,1718179849665,-936.16,0.00018081,2]
[329205187,1718179849675,-593.6149024,0.00018082,2]
[329205189,1718179849685,-250.0,0.00018082,2]
[329205191,1718179849696,-500.0,0.00018082,2]
[329205193,1718179849706,-500.0,0.00018082,2]
[329205195,1718179849718,-500.0,0.00018082,2]
[329205197,1718179849731,-500.0,0.00018082,2]
[329205199,1718179849745,-1127.23,0.00018082,2]
[329205201,1718179849755,-619.76,0.00018082,2]
[329205203,1718179849767,-500.0,0.00018082,2]
[329205204,1718179849778,-500.0,0.00018082,2]
[329205207,1718179849814,-550.65313336,0.00018082,2]
[329205209,1718179849828,-14998.19,0.00018082,2]
[329205211,1718179849841,-1336.24,0.00018082,2]
[329205213,1718179849855,-766.74,0.00018082,2]
[329205215,1718179849873,-576.105549,0.00018082,2]
[329205217,1718179849884,-7788.73,0.00018082,2]
[329205219,1718179849895,-17698.7,0.00018082,2]
[329205221,1718179849913,-736.06,0.00018082,2]
[329205223,1718179849931,-2458.11,0.00018082,2]
[329205224,1718179849941,-500.0,0.00018082,2]
[329205227,1718179849955,-3173.18,0.00018082,2]
[329205229,1718179849967,-208.37604265,0.00018082,2]
[329205230,1718179849979,-538.49,0.00018082,2]
[329205233,1718179849997,-1433.92,0.00018082,2]